[Event "Early-Titled-Tuesday-Blitz-March-26-2024"]
[Site "Chess.com"]
[Date "2024.03.26"]
[Round "10"]
[White "NikitaShnadrygin"]
[Black "scarabee43"]
[Result "1/2-1/2"]
[WhiteElo "2659"]
[BlackElo "2836"]
[TimeControl "180+1"]
[EndTime "9:52:19 PDT"]
[Termination "Game drawn by repetition"]

1. e4 {[%clk 0:03:00.9]} 1... c5 {[%clk 0:02:59.5]} 2. Nf3 {[%clk 0:03:00.9]}
2... e6 {[%clk 0:03:00]} 3. d4 {[%clk 0:03:00.9]} 3... cxd4 {[%clk 0:03:00.8]}
4. Nxd4 {[%clk 0:03:01.8]} 4... Nc6 {[%clk 0:03:01]} 5. Nc3 {[%clk 0:03:01.2]}
5... Qc7 {[%clk 0:03:01.4]} 6. Be2 {[%clk 0:03:01.4]} 6... a6 {[%clk 0:03:00.5]}
7. O-O {[%clk 0:03:01.4]} 7... Nf6 {[%clk 0:03:00.3]} 8. Be3 {[%clk 0:03:01.3]}
8... Be7 {[%clk 0:03:00.6]} 9. f4 {[%clk 0:03:00.2]} 9... d6 {[%clk 0:03:00.3]}
10. Kh1 {[%clk 0:03:00.2]} 10... O-O {[%clk 0:03:00.4]} 11. Qe1 {[%clk
0:03:00.4]} 11... Nxd4 {[%clk 0:02:58.6]} 12. Bxd4 {[%clk 0:03:00.4]} 12... b5
{[%clk 0:02:59.4]} 13. e5 {[%clk 0:02:46.2]} 13... dxe5 {[%clk 0:02:59.1]} 14.
Bxe5 {[%clk 0:02:44.9]} 14... Qb6 {[%clk 0:02:54.1]} 15. a4 {[%clk 0:02:28.6]}
15... b4 {[%clk 0:02:50.5]} 16. a5 {[%clk 0:02:23.2]} 16... Qa7 {[%clk 0:02:43]}
17. Na4 {[%clk 0:02:12.3]} 17... Nd7 {[%clk 0:02:43.1]} 18. Bf3 {[%clk
0:01:50.1]} 18... Bb7 {[%clk 0:02:34.4]} 19. Rd1 {[%clk 0:01:37.5]} 19... Bxf3
{[%clk 0:02:30.9]} 20. Rxf3 {[%clk 0:01:36.8]} 20... Nxe5 {[%clk 0:02:28.2]} 21.
fxe5 {[%clk 0:01:28.6]} 21... Rac8 {[%clk 0:02:22.6]} 22. Nb6 {[%clk 0:01:07.7]}
22... Rxc2 {[%clk 0:02:22.1]} 23. Rd7 {[%clk 0:01:04.4]} 23... Rc7 {[%clk
0:02:21.6]} 24. Rfd3 {[%clk 0:01:05]} 24... Qb8 {[%clk 0:01:55.3]} 25. Qd1
{[%clk 0:00:48.3]} 25... Rxd7 {[%clk 0:01:49.7]} 26. Nxd7 {[%clk 0:00:47.2]}
26... Qb5 {[%clk 0:01:49.2]} 27. Nxf8 {[%clk 0:00:47.1]} 27... Bxf8 {[%clk
0:01:49.9]} 28. Rd8 {[%clk 0:00:42.8]} 28... Qxa5 {[%clk 0:01:44.4]} 29. h3
{[%clk 0:00:39.4]} 29... Qc5 {[%clk 0:01:20.1]} 30. Qd6 {[%clk 0:00:24]} 30...
Qc1+ {[%clk 0:01:19.6]} 31. Kh2 {[%clk 0:00:24]} 31... Qf4+ {[%clk 0:01:20.3]}
32. Kg1 {[%clk 0:00:24.3]} 32... Qc1+ {[%clk 0:01:16]} 33. Qd1 {[%clk
0:00:12.7]} 33... Qc5+ {[%clk 0:01:13.8]} 34. Kh1 {[%clk 0:00:10.2]} 34... g6
{[%clk 0:01:07]} 35. Qd6 {[%clk 0:00:05.2]} 35... Qc1+ {[%clk 0:01:06.7]} 36.
Kh2 {[%clk 0:00:05.6]} 36... Qf4+ {[%clk 0:01:07.4]} 37. Kh1 {[%clk 0:00:05.9]}
37... Qf1+ {[%clk 0:01:07.1]} 38. Kh2 {[%clk 0:00:06.1]} 38... Qf4+ {[%clk
0:01:07.3]} 39. Kh1 {[%clk 0:00:06.7]} 39... Qf1+ {[%clk 0:01:07]} 40. Kh2
{[%clk 0:00:07.3]} 40... Qf4+ {[%clk 0:01:06.9]} 1/2-1/2

[Event "Early-Titled-Tuesday-Blitz-March-26-2024"]
[Site "Chess.com"]
[Date "2024.03.26"]
[Round "10"]
[White "ural58"]
[Black "Winner_7777"]
[Result "0-1"]
[WhiteElo "2470"]
[BlackElo "2593"]
[TimeControl "180+1"]
[EndTime "9:52:20 PDT"]
[Termination "Winner_7777 won by resignation"]

1. e4 {[%clk 0:03:00.9]} 1... c5 {[%clk 0:02:59.9]} 2. b3 {[%clk 0:03:00.1]}
2... Nc6 {[%clk 0:02:56.4]} 3. Bb2 {[%clk 0:02:59.9]} 3... d6 {[%clk 0:02:53]}
4. f4 {[%clk 0:02:59.6]} 4... Nf6 {[%clk 0:02:28.3]} 5. Qf3 {[%clk 0:02:58.8]}
5... e5 {[%clk 0:02:19.5]} 6. Bb5 {[%clk 0:02:57.1]} 6... Qc7 {[%clk 0:02:15.9]}
7. Ne2 {[%clk 0:02:55.6]} 7... a6 {[%clk 0:02:14.5]} 8. Bxc6+ {[%clk 0:02:55.5]}
8... Qxc6 {[%clk 0:02:15.4]} 9. d3 {[%clk 0:02:55]} 9... Qc7 {[%clk 0:02:08.6]}
10. c4 {[%clk 0:02:53.5]} 10... h5 {[%clk 0:01:50.5]} 11. h3 {[%clk 0:02:52]}
11... h4 {[%clk 0:01:50.5]} 12. Nbc3 {[%clk 0:02:50.4]} 12... Be6 {[%clk
0:01:46.4]} 13. O-O {[%clk 0:02:49.2]} 13... Be7 {[%clk 0:01:43.4]} 14. Nd5
{[%clk 0:02:48.3]} 14... Bxd5 {[%clk 0:01:37.4]} 15. exd5 {[%clk 0:02:47.3]}
15... O-O-O {[%clk 0:01:36.9]} 16. fxe5 {[%clk 0:02:45.3]} 16... dxe5 {[%clk
0:01:37.8]} 17. Qf5+ {[%clk 0:02:44.7]} 17... Kb8 {[%clk 0:00:48.8]} 18. Bxe5
{[%clk 0:02:37.9]} 18... Bd6 {[%clk 0:00:48.7]} 19. Bxd6 {[%clk 0:02:25.5]}
19... Rxd6 {[%clk 0:00:49.6]} 20. d4 {[%clk 0:02:24.9]} 20... Re8 {[%clk
0:00:28.8]} 21. Qf2 {[%clk 0:02:17.5]} 21... cxd4 {[%clk 0:00:18]} 22. Nxd4
{[%clk 0:02:16.7]} 22... Ne4 {[%clk 0:00:18.5]} 23. Qf4 {[%clk 0:02:14.6]} 23...
g5 {[%clk 0:00:13.5]} 24. Qf3 {[%clk 0:01:48.5]} 24... Qc5 {[%clk 0:00:13.3]}
25. Rad1 {[%clk 0:01:47.1]} 25... Ng3 {[%clk 0:00:12.9]} 26. Qxf7 {[%clk
0:01:42]} 26... Re4 {[%clk 0:00:10.8]} 27. Qg8+ {[%clk 0:01:32.3]} 27... Ka7
{[%clk 0:00:09.1]} 28. b4 {[%clk 0:01:02.3]} 28... Qxc4 {[%clk 0:00:08.6]} 29.
Nc6+ {[%clk 0:00:59.7]} 29... Rxc6 {[%clk 0:00:08.2]} 30. dxc6 {[%clk
0:00:57.1]} 30... Qxg8 {[%clk 0:00:08.4]} 0-1

[Event "Early-Titled-Tuesday-Blitz-March-26-2024"]
[Site "Chess.com"]
[Date "2024.03.26"]
[Round "10"]
[White "ernestina08chess"]
[Black "NastyaHn"]
[Result "1-0"]
[WhiteElo "2276"]
[BlackElo "2442"]
[TimeControl "180+1"]
[EndTime "9:52:23 PDT"]
[Termination "ernestina08chess won on time"]

1. e4 {[%clk 0:03:00.9]} 1... e6 {[%clk 0:02:59.6]} 2. d4 {[%clk 0:03:00.3]}
2... d5 {[%clk 0:02:59.3]} 3. e5 {[%clk 0:03:00.8]} 3... c5 {[%clk 0:02:59.2]}
4. c3 {[%clk 0:03:01.5]} 4... Nc6 {[%clk 0:02:59.1]} 5. Nf3 {[%clk 0:03:02.2]}
5... Qb6 {[%clk 0:02:59.3]} 6. Bd3 {[%clk 0:03:01.5]} 6... cxd4 {[%clk
0:02:58.8]} 7. O-O {[%clk 0:03:01.7]} 7... a6 {[%clk 0:02:58.5]} 8. Re1 {[%clk
0:03:00.9]} 8... Nge7 {[%clk 0:02:51.4]} 9. h4 {[%clk 0:03:00.3]} 9... Bd7
{[%clk 0:02:48.8]} 10. Nbd2 {[%clk 0:02:50.3]} 10... Ng6 {[%clk 0:02:27.8]} 11.
Nb3 {[%clk 0:02:48.2]} 11... dxc3 {[%clk 0:02:22.5]} 12. bxc3 {[%clk 0:02:49.1]}
12... Qc7 {[%clk 0:02:22.2]} 13. Qe2 {[%clk 0:02:48.1]} 13... Be7 {[%clk
0:02:19.2]} 14. g3 {[%clk 0:02:46.9]} 14... O-O-O {[%clk 0:02:09.1]} 15. h5
{[%clk 0:02:39.8]} 15... Nf8 {[%clk 0:02:07.1]} 16. Rb1 {[%clk 0:02:34.7]} 16...
f6 {[%clk 0:01:43.9]} 17. Nbd4 {[%clk 0:02:10]} 17... Nb8 {[%clk 0:01:13.6]} 18.
Bf4 {[%clk 0:01:51.2]} 18... f5 {[%clk 0:01:11.3]} 19. Rec1 {[%clk 0:01:42.9]}
19... Bc6 {[%clk 0:00:47.9]} 20. c4 {[%clk 0:01:18.9]} 20... dxc4 {[%clk
0:00:36.7]} 21. Bxc4 {[%clk 0:01:18]} 21... Kd7 {[%clk 0:00:26.4]} 22. Bg5
{[%clk 0:01:00.4]} 22... h6 {[%clk 0:00:19.5]} 23. Bf4 {[%clk 0:00:57.1]} 23...
Ba3 {[%clk 0:00:12]} 24. Rc3 {[%clk 0:00:51.5]} 24... Qa5 {[%clk 0:00:06.8]} 25.
Qd3 {[%clk 0:00:43.9]} 25... Ke7 {[%clk 0:00:02]} 26. Rxa3 {[%clk 0:00:42.7]}
1-0

[Event "Early-Titled-Tuesday-Blitz-March-26-2024"]
[Site "Chess.com"]
[Date "2024.03.26"]
[Round "10"]
[White "Boundless_Strike"]
[Black "Oligan22"]
[Result "1-0"]
[WhiteElo "2620"]
[BlackElo "2465"]
[TimeControl "180+1"]
[EndTime "9:52:25 PDT"]
[Termination "Boundless_Strike won on time"]

1. d4 {[%clk 0:03:00.9]} 1... d5 {[%clk 0:02:59.5]} 2. e4 {[%clk 0:03:01]} 2...
dxe4 {[%clk 0:02:58.9]} 3. Nc3 {[%clk 0:03:01.7]} 3... Nf6 {[%clk 0:02:59]} 4.
f3 {[%clk 0:03:02]} 4... exf3 {[%clk 0:02:51.3]} 5. Nxf3 {[%clk 0:03:02.9]} 5...
Bf5 {[%clk 0:02:50.7]} 6. Ne5 {[%clk 0:03:02.8]} 6... e6 {[%clk 0:02:47]} 7. g4
{[%clk 0:03:02.5]} 7... Bg6 {[%clk 0:02:44.1]} 8. Bg2 {[%clk 0:02:57.9]} 8... c6
{[%clk 0:02:43.1]} 9. h4 {[%clk 0:02:57.7]} 9... Bb4 {[%clk 0:02:41.8]} 10. O-O
{[%clk 0:02:57.1]} 10... Bxc2 {[%clk 0:02:05.2]} 11. Qd2 {[%clk 0:02:56]} 11...
Be4 {[%clk 0:01:40.4]} 12. Bxe4 {[%clk 0:02:10]} 12... Nxe4 {[%clk 0:01:31.7]}
13. Qf4 {[%clk 0:02:09.2]} 13... Qxd4+ {[%clk 0:01:25.2]} 14. Kg2 {[%clk
0:01:25.4]} 14... f6 {[%clk 0:00:42.1]} 15. Nf3 {[%clk 0:01:14.7]} 15... Qd6
{[%clk 0:00:03.1]} 16. Qxe4 {[%clk 0:01:01.4]} 16... Nd7 {[%clk 0:00:03.5]} 17.
Be3 {[%clk 0:00:31.8]} 17... O-O-O {[%clk 0:00:02.7]} 18. Rad1 {[%clk
0:00:31.5]} 18... Qe7 {[%clk 0:00:02.4]} 19. Bxa7 {[%clk 0:00:27.9]} 19... Nc5
{[%clk 0:00:02.6]} 20. Qxb4 {[%clk 0:00:22.5]} 1-0

[Event "Early-Titled-Tuesday-Blitz-March-26-2024"]
[Site "Chess.com"]
[Date "2024.03.26"]
[Round "10"]
[White "pfalcon1949"]
[Black "Veleamater"]
[Result "0-1"]
[WhiteElo "2069"]
[BlackElo "2406"]
[TimeControl "180+1"]
[EndTime "9:52:32 PDT"]
[Termination "Veleamater won by resignation"]

1. e4 {[%clk 0:02:52.7]} 1... d6 {[%clk 0:03:00.9]} 2. d4 {[%clk 0:02:51.4]}
2... g6 {[%clk 0:03:01.1]} 3. Nc3 {[%clk 0:02:51.5]} 3... Bg7 {[%clk 0:03:01]}
4. Be3 {[%clk 0:02:49.8]} 4... Nf6 {[%clk 0:03:01.1]} 5. Qd2 {[%clk 0:02:49.7]}
5... Nc6 {[%clk 0:03:01.2]} 6. f3 {[%clk 0:02:49.9]} 6... O-O {[%clk 0:03:00.7]}
7. Nge2 {[%clk 0:02:49.2]} 7... e5 {[%clk 0:03:00.8]} 8. d5 {[%clk 0:02:48.5]}
8... Ne7 {[%clk 0:03:00.6]} 9. g4 {[%clk 0:02:47.3]} 9... c6 {[%clk 0:03:01]}
10. dxc6 {[%clk 0:02:32]} 10... bxc6 {[%clk 0:03:00.8]} 11. h4 {[%clk
0:02:32.6]} 11... d5 {[%clk 0:03:01.2]} 12. exd5 {[%clk 0:02:30.8]} 12... Nfxd5
{[%clk 0:03:00.2]} 13. Bh6 {[%clk 0:02:26.8]} 13... f5 {[%clk 0:02:50.6]} 14.
Bxg7 {[%clk 0:02:25.3]} 14... Kxg7 {[%clk 0:02:50.3]} 15. h5 {[%clk 0:02:24.7]}
15... Nxc3 {[%clk 0:02:43.5]} 16. Qxc3 {[%clk 0:02:22.6]} 16... Qc7 {[%clk
0:02:37.6]} 17. g5 {[%clk 0:02:07.5]} 17... Nd5 {[%clk 0:02:35.5]} 18. Qd2
{[%clk 0:01:57.6]} 18... f4 {[%clk 0:02:34.4]} 19. O-O-O {[%clk 0:01:51.7]}
19... Bf5 {[%clk 0:02:33.1]} 20. Nc3 {[%clk 0:01:50.2]} 20... Ne3 {[%clk
0:02:31.6]} 21. hxg6 {[%clk 0:01:36.7]} 21... hxg6 {[%clk 0:02:28]} 22. Re1
{[%clk 0:01:16.2]} 22... Rad8 {[%clk 0:02:22.6]} 23. Bd3 {[%clk 0:01:11.2]}
23... Qd7 {[%clk 0:02:10.5]} 24. Qh2 {[%clk 0:00:49.2]} 24... Rh8 {[%clk
0:02:08.4]} 25. Qe2 {[%clk 0:00:47.8]} 25... Bxd3 {[%clk 0:01:47]} 26. cxd3
{[%clk 0:00:43.9]} 26... Qxd3 {[%clk 0:01:46.9]} 27. Qxd3 {[%clk 0:00:36.6]}
27... Rxd3 {[%clk 0:01:45]} 28. Rxh8 {[%clk 0:00:36.2]} 28... Kxh8 {[%clk
0:01:44.5]} 29. Ne4 {[%clk 0:00:36]} 29... Nd5 {[%clk 0:01:43.3]} 30. Rh1+
{[%clk 0:00:33.8]} 30... Kg7 {[%clk 0:01:42.4]} 31. Kc2 {[%clk 0:00:34.7]} 31...
Rxf3 {[%clk 0:01:41.8]} 32. Re1 {[%clk 0:00:30.7]} 32... Rh3 {[%clk 0:01:33.9]}
33. a3 {[%clk 0:00:27.3]} 33... Rh2+ {[%clk 0:01:28.1]} 34. Kb3 {[%clk
0:00:25.6]} 34... Rh3+ {[%clk 0:01:12.1]} 35. Kc4 {[%clk 0:00:23.9]} 35... Re3
{[%clk 0:01:12.1]} 36. Rh1 {[%clk 0:00:22.8]} 36... f3 {[%clk 0:01:10.2]} 37.
Kc5 {[%clk 0:00:23.7]} 37... Rxe4 {[%clk 0:01:05.4]} 38. Kxc6 {[%clk 0:00:23.4]}
38... Ne7+ {[%clk 0:01:00.6]} 39. Kd6 {[%clk 0:00:22.6]} 39... Nf5+ {[%clk
0:00:59]} 40. Kd5 {[%clk 0:00:20.6]} 40... Re2 {[%clk 0:00:51.9]} 41. Rf1 {[%clk
0:00:20.1]} 41... f2 {[%clk 0:00:51.9]} 42. Ke6 {[%clk 0:00:18.7]} 42... Ng3
{[%clk 0:00:51.7]} 43. Rxf2 {[%clk 0:00:18.3]} 43... Rxf2 {[%clk 0:00:51.9]} 44.
Kxe5 {[%clk 0:00:19.1]} 44... Rxb2 {[%clk 0:00:51.9]} 45. Kf4 {[%clk 0:00:19.7]}
45... Rb3 {[%clk 0:00:51.9]} 0-1

[Event "Early-Titled-Tuesday-Blitz-March-26-2024"]
[Site "Chess.com"]
[Date "2024.03.26"]
[Round "10"]
[White "Harry_Rakkel"]
[Black "imdvb6307"]
[Result "1-0"]
[WhiteElo "2715"]
[BlackElo "2515"]
[TimeControl "180+1"]
[EndTime "9:52:33 PDT"]
[Termination "Harry_Rakkel won on time"]

1. Nf3 {[%clk 0:03:00.9]} 1... d5 {[%clk 0:02:48.8]} 2. g3 {[%clk 0:03:00.4]}
2... c6 {[%clk 0:02:47.9]} 3. Bg2 {[%clk 0:03:00.2]} 3... Bg4 {[%clk 0:02:48]}
4. O-O {[%clk 0:02:59]} 4... Nd7 {[%clk 0:02:48.2]} 5. d3 {[%clk 0:02:58.1]}
5... e6 {[%clk 0:02:47.9]} 6. Nbd2 {[%clk 0:02:58]} 6... Ngf6 {[%clk 0:02:48.1]}
7. h3 {[%clk 0:02:57.3]} 7... Bxf3 {[%clk 0:02:47.8]} 8. Nxf3 {[%clk 0:02:56.8]}
8... Bd6 {[%clk 0:02:46.4]} 9. Re1 {[%clk 0:02:56.5]} 9... O-O {[%clk
0:02:46.3]} 10. e4 {[%clk 0:02:56.2]} 10... dxe4 {[%clk 0:02:46.6]} 11. dxe4
{[%clk 0:02:55.9]} 11... Ne5 {[%clk 0:02:47.2]} 12. Nh2 {[%clk 0:02:51.8]} 12...
Bc5 {[%clk 0:02:39.1]} 13. Qe2 {[%clk 0:02:50.7]} 13... Qb6 {[%clk 0:02:34.5]}
14. Rf1 {[%clk 0:02:40]} 14... Qb5 {[%clk 0:02:19.2]} 15. Qe1 {[%clk 0:02:35.4]}
15... Qc4 {[%clk 0:02:18.7]} 16. Bf4 {[%clk 0:02:25.6]} 16... Ng6 {[%clk
0:02:17.9]} 17. b3 {[%clk 0:02:25.8]} 17... Qb5 {[%clk 0:01:47.6]} 18. Bd2
{[%clk 0:02:23.8]} 18... e5 {[%clk 0:01:44.5]} 19. Kh1 {[%clk 0:02:17.3]} 19...
Rfe8 {[%clk 0:01:38.5]} 20. a4 {[%clk 0:02:05.1]} 20... Qa6 {[%clk 0:01:37.4]}
21. Bf3 {[%clk 0:01:56.2]} 21... Nd7 {[%clk 0:01:17.7]} 22. Be2 {[%clk
0:01:53.1]} 22... b5 {[%clk 0:00:58.8]} 23. axb5 {[%clk 0:01:52.6]} 23... Qb7
{[%clk 0:00:58.9]} 24. bxc6 {[%clk 0:01:51.8]} 24... Qxc6 {[%clk 0:00:59.1]} 25.
Bd3 {[%clk 0:01:44.5]} 25... Red8 {[%clk 0:00:51.4]} 26. Nf3 {[%clk 0:01:41.6]}
26... Bb6 {[%clk 0:00:42]} 27. b4 {[%clk 0:01:37.5]} 27... Ndf8 {[%clk 0:00:37]}
28. Qe2 {[%clk 0:01:33.3]} 28... Ne6 {[%clk 0:00:34.8]} 29. c3 {[%clk
0:01:30.6]} 29... f6 {[%clk 0:00:15.6]} 30. Bc4 {[%clk 0:01:28]} 30... Kh8
{[%clk 0:00:15.3]} 31. Rfd1 {[%clk 0:01:24]} 31... Rac8 {[%clk 0:00:14.8]} 32.
Bd5 {[%clk 0:01:23.2]} 32... Qe8 {[%clk 0:00:14.1]} 33. Be1 {[%clk 0:01:21.1]}
33... Ngf8 {[%clk 0:00:12.7]} 34. c4 {[%clk 0:01:18.6]} 34... Nd4 {[%clk
0:00:12.1]} 35. Nxd4 {[%clk 0:01:17.7]} 35... Bxd4 {[%clk 0:00:11.9]} 36. Ra6
{[%clk 0:01:18]} 36... Nd7 {[%clk 0:00:07.5]} 37. c5 {[%clk 0:01:17.3]} 37...
Rc7 {[%clk 0:00:07.9]} 38. Kg2 {[%clk 0:01:14.4]} 38... Nb8 {[%clk 0:00:08]} 39.
Re6 {[%clk 0:01:13.7]} 39... Qf8 {[%clk 0:00:06.9]} 40. Rd3 {[%clk 0:01:10]}
40... a5 {[%clk 0:00:06.8]} 41. bxa5 {[%clk 0:01:06.7]} 41... Qxc5 {[%clk
0:00:06]} 42. Rb3 {[%clk 0:01:05.9]} 1-0

[Event "Early-Titled-Tuesday-Blitz-March-26-2024"]
[Site "Chess.com"]
[Date "2024.03.26"]
[Round "10"]
[White "ChessQueen"]
[Black "guillembaches"]
[Result "1/2-1/2"]
[WhiteElo "2713"]
[BlackElo "2532"]
[TimeControl "180+1"]
[EndTime "9:52:35 PDT"]
[Termination "Game drawn by repetition"]

1. e4 {[%clk 0:03:00.9]} 1... d5 {[%clk 0:03:00.6]} 2. exd5 {[%clk 0:03:00.7]}
2... Qxd5 {[%clk 0:03:01.3]} 3. Nc3 {[%clk 0:03:01]} 3... Qa5 {[%clk 0:03:01.5]}
4. Nf3 {[%clk 0:03:01.1]} 4... Nf6 {[%clk 0:03:01.8]} 5. d4 {[%clk 0:03:01]}
5... Bf5 {[%clk 0:03:01.7]} 6. Bc4 {[%clk 0:02:59.7]} 6... e6 {[%clk 0:03:01.7]}
7. Bd2 {[%clk 0:02:59.9]} 7... Bb4 {[%clk 0:03:02]} 8. a3 {[%clk 0:02:55.4]}
8... Bxc3 {[%clk 0:03:01.8]} 9. Bxc3 {[%clk 0:02:55]} 9... Qb6 {[%clk
0:03:02.1]} 10. Qe2 {[%clk 0:02:48.7]} 10... O-O {[%clk 0:03:01]} 11. Bb4 {[%clk
0:02:30.7]} 11... Re8 {[%clk 0:02:49.2]} 12. O-O-O {[%clk 0:02:13.5]} 12... Nc6
{[%clk 0:02:27.3]} 13. Bc5 {[%clk 0:02:13.7]} 13... Qa5 {[%clk 0:02:24.3]} 14.
Bb5 {[%clk 0:02:13.9]} 14... Ne4 {[%clk 0:02:10.6]} 15. g4 {[%clk 0:01:46.1]}
15... Bg6 {[%clk 0:02:02.9]} 16. h4 {[%clk 0:01:38.8]} 16... Nxc5 {[%clk
0:01:27.3]} 17. dxc5 {[%clk 0:01:36.8]} 17... h5 {[%clk 0:01:20.2]} 18. Ne5
{[%clk 0:00:58.9]} 18... Nxe5 {[%clk 0:00:59.3]} 19. Bxe8 {[%clk 0:00:58.8]}
19... Nxg4 {[%clk 0:00:59.5]} 20. Bb5 {[%clk 0:00:52.1]} 20... Nxf2 {[%clk
0:00:48.5]} 21. Qxf2 {[%clk 0:00:52.3]} 21... Qxb5 {[%clk 0:00:48.9]} 22. Rhg1
{[%clk 0:00:51.3]} 22... Qc4 {[%clk 0:00:36.8]} 23. Rd4 {[%clk 0:00:51.2]} 23...
Qa2 {[%clk 0:00:35.4]} 24. Rxg6 {[%clk 0:00:16]} 24... fxg6 {[%clk 0:00:33.3]}
25. Qe3 {[%clk 0:00:15.9]} 25... Rf8 {[%clk 0:00:28.5]} 26. Rf4 {[%clk
0:00:15.5]} 26... Rxf4 {[%clk 0:00:24.8]} 27. Qxf4 {[%clk 0:00:15.8]} 27... Qa1+
{[%clk 0:00:25.4]} 28. Kd2 {[%clk 0:00:16.4]} 28... Qxb2 {[%clk 0:00:25.9]} 29.
Qxc7 {[%clk 0:00:16.7]} 29... Qd4+ {[%clk 0:00:22.2]} 30. Kc1 {[%clk 0:00:16.2]}
30... Qa1+ {[%clk 0:00:22.1]} 31. Kd2 {[%clk 0:00:16.4]} 31... Qd4+ {[%clk
0:00:22.4]} 32. Kc1 {[%clk 0:00:16.3]} 32... Qa1+ {[%clk 0:00:22.6]} 33. Kd2
{[%clk 0:00:16.9]} 33... Qd4+ {[%clk 0:00:22.6]} 1/2-1/2

[Event "Early-Titled-Tuesday-Blitz-March-26-2024"]
[Site "Chess.com"]
[Date "2024.03.26"]
[Round "10"]
[White "balack95"]
[Black "HanSchut"]
[Result "1-0"]
[WhiteElo "2459"]
[BlackElo "2280"]
[TimeControl "180+1"]
[EndTime "9:52:35 PDT"]
[Termination "balack95 won by checkmate"]

1. d4 {[%clk 0:02:59.6]} 1... Nf6 {[%clk 0:02:56.3]} 2. c4 {[%clk 0:02:59.5]}
2... g6 {[%clk 0:02:56.7]} 3. Nc3 {[%clk 0:02:59.1]} 3... d5 {[%clk 0:02:57.2]}
4. cxd5 {[%clk 0:02:58.7]} 4... Nxd5 {[%clk 0:02:58.1]} 5. Bd2 {[%clk
0:02:58.9]} 5... Nb6 {[%clk 0:02:58]} 6. e3 {[%clk 0:02:58.7]} 6... Bg7 {[%clk
0:02:56.5]} 7. f4 {[%clk 0:02:59.2]} 7... O-O {[%clk 0:02:55.4]} 8. Nf3 {[%clk
0:02:59.7]} 8... N8d7 {[%clk 0:02:38.3]} 9. Ne4 {[%clk 0:02:59]} 9... c5 {[%clk
0:02:33.4]} 10. dxc5 {[%clk 0:02:57.9]} 10... Nd5 {[%clk 0:02:28.2]} 11. Qb3
{[%clk 0:02:54]} 11... N7f6 {[%clk 0:02:20.6]} 12. Nxf6+ {[%clk 0:02:50.4]}
12... Nxf6 {[%clk 0:02:17.6]} 13. Rd1 {[%clk 0:02:48.5]} 13... Bg4 {[%clk
0:02:04.2]} 14. Be2 {[%clk 0:02:47.1]} 14... Qc7 {[%clk 0:01:56.1]} 15. Qa3
{[%clk 0:02:34.4]} 15... Ne4 {[%clk 0:01:48.4]} 16. b4 {[%clk 0:02:32.3]} 16...
a5 {[%clk 0:01:40.4]} 17. bxa5 {[%clk 0:02:27.8]} 17... Qxc5 {[%clk 0:01:31.1]}
18. Qxc5 {[%clk 0:02:22.1]} 18... Nxc5 {[%clk 0:01:32]} 19. Bb4 {[%clk
0:02:21.9]} 19... Rfc8 {[%clk 0:01:20.7]} 20. h3 {[%clk 0:02:21.2]} 20... Be6
{[%clk 0:01:16.8]} 21. O-O {[%clk 0:02:14]} 21... Bxa2 {[%clk 0:01:11]} 22. Nd4
{[%clk 0:02:12.8]} 22... Ne6 {[%clk 0:00:58.7]} 23. Nb5 {[%clk 0:01:30.2]} 23...
Bc4 {[%clk 0:00:52.2]} 24. Bxc4 {[%clk 0:01:25.8]} 24... Rxc4 {[%clk 0:00:53.1]}
25. Bxe7 {[%clk 0:01:26.1]} 25... Bf8 {[%clk 0:00:48.4]} 26. Bxf8 {[%clk
0:01:23.4]} 26... Kxf8 {[%clk 0:00:49.3]} 27. Nd6 {[%clk 0:01:23.2]} 27... Rb4
{[%clk 0:00:40]} 28. f5 {[%clk 0:01:23.4]} 28... Nc5 {[%clk 0:00:28.6]} 29. fxg6
{[%clk 0:01:22.8]} 29... hxg6 {[%clk 0:00:26.8]} 30. Rxf7+ {[%clk 0:01:22.7]}
30... Kg8 {[%clk 0:00:27.2]} 31. Rc7 {[%clk 0:01:17.3]} 31... Ne4 {[%clk
0:00:22.6]} 32. Nxb7 {[%clk 0:01:15.4]} 32... Nc3 {[%clk 0:00:08.9]} 33. Rdd7
{[%clk 0:01:12.2]} 33... Ne2+ {[%clk 0:00:06.6]} 34. Kf2 {[%clk 0:01:12.7]}
34... Rb2 {[%clk 0:00:06.9]} 35. Kf3 {[%clk 0:01:01.6]} 35... Rf8+ {[%clk
0:00:05.9]} 36. Kg4 {[%clk 0:00:58.5]} 36... Rb4+ {[%clk 0:00:05.3]} 37. Kg5
{[%clk 0:00:50.9]} 37... Re8 {[%clk 0:00:02.1]} 38. Rg7+ {[%clk 0:00:49.4]}
38... Kf8 {[%clk 0:00:02.3]} 39. Rcf7# {[%clk 0:00:49.2]} 1-0

[Event "Early-Titled-Tuesday-Blitz-March-26-2024"]
[Site "Chess.com"]
[Date "2024.03.26"]
[Round "10"]
[White "Joachim100x"]
[Black "RobertDowneyJr0111"]
[Result "1-0"]
[WhiteElo "2543"]
[BlackElo "2633"]
[TimeControl "180+1"]
[EndTime "9:52:46 PDT"]
[Termination "Joachim100x won by checkmate"]

1. e4 {[%clk 0:03:00.9]} 1... e5 {[%clk 0:02:59.4]} 2. Nf3 {[%clk 0:03:00.3]}
2... Nc6 {[%clk 0:02:59.3]} 3. Bb5 {[%clk 0:03:00.5]} 3... a6 {[%clk 0:02:59.5]}
4. Ba4 {[%clk 0:03:01]} 4... Nf6 {[%clk 0:02:59.9]} 5. Nc3 {[%clk 0:03:01.3]}
5... b5 {[%clk 0:03:00.6]} 6. Bb3 {[%clk 0:03:00.8]} 6... Bc5 {[%clk 0:03:01.5]}
7. O-O {[%clk 0:03:00.4]} 7... d6 {[%clk 0:03:00.8]} 8. d3 {[%clk 0:03:00.6]}
8... h6 {[%clk 0:03:00.3]} 9. Be3 {[%clk 0:03:00.7]} 9... O-O {[%clk 0:02:58.5]}
10. h3 {[%clk 0:02:54.8]} 10... Rb8 {[%clk 0:02:54.8]} 11. a3 {[%clk 0:02:54.1]}
11... Re8 {[%clk 0:02:51.2]} 12. Nd5 {[%clk 0:02:53.7]} 12... Nxd5 {[%clk
0:02:26]} 13. Bxd5 {[%clk 0:02:53.5]} 13... Ne7 {[%clk 0:02:09.7]} 14. Bb3
{[%clk 0:02:53.3]} 14... Ng6 {[%clk 0:02:06.9]} 15. Nh2 {[%clk 0:02:38.3]} 15...
Qh4 {[%clk 0:01:24]} 16. Nf3 {[%clk 0:02:32.5]} 16... Qf6 {[%clk 0:01:23.6]} 17.
Nh2 {[%clk 0:02:29.3]} 17... Nf4 {[%clk 0:01:16.9]} 18. Bxf4 {[%clk 0:02:22.7]}
18... Qxf4 {[%clk 0:01:16.5]} 19. Qf3 {[%clk 0:02:22.8]} 19... Qxf3 {[%clk
0:01:14.2]} 20. Nxf3 {[%clk 0:02:22.9]} 20... Kf8 {[%clk 0:01:14.3]} 21. c3
{[%clk 0:02:21.8]} 21... Bb6 {[%clk 0:01:14.6]} 22. Rfd1 {[%clk 0:02:20.2]}
22... g6 {[%clk 0:01:13.6]} 23. Bc2 {[%clk 0:02:17.8]} 23... Kg7 {[%clk
0:01:12.5]} 24. d4 {[%clk 0:02:17.5]} 24... f5 {[%clk 0:01:00.6]} 25. dxe5
{[%clk 0:02:16.4]} 25... dxe5 {[%clk 0:01:01.2]} 26. exf5 {[%clk 0:01:53.2]}
26... gxf5 {[%clk 0:01:02.1]} 27. Rd2 {[%clk 0:01:51.2]} 27... Kf6 {[%clk
0:00:56.3]} 28. Rad1 {[%clk 0:01:50.8]} 28... Bb7 {[%clk 0:00:51.1]} 29. Rd7
{[%clk 0:01:45.3]} 29... Rg8 {[%clk 0:00:32.5]} 30. Kf1 {[%clk 0:01:44.6]} 30...
e4 {[%clk 0:00:28]} 31. Nh4 {[%clk 0:01:22.3]} 31... Rbe8 {[%clk 0:00:20]} 32.
Rh7 {[%clk 0:01:02.8]} 32... Kg5 {[%clk 0:00:18.1]} 33. g3 {[%clk 0:01:02.9]}
33... f4 {[%clk 0:00:15.8]} 34. Rdd7 {[%clk 0:00:55.1]} 34... e3 {[%clk
0:00:14.1]} 35. Rdg7+ {[%clk 0:00:50.8]} 35... Kf6 {[%clk 0:00:13.7]} 36. Rf7+
{[%clk 0:00:40.5]} 36... Kg5 {[%clk 0:00:11.3]} 37. Rf5# {[%clk 0:00:37.5]} 1-0